fUSD/lending_fUSD_20250213
["ID","MTS","AMOUNT","RATE_DAILY","PERIOD"]
[352927261,1739436649159,-566.44,0.00015356,2]
[352927262,1739436649170,-1175.23,0.00015356,2]
[352927263,1739436649180,-674.27,0.00015356,2]
[352927264,1739436649189,-151.0,0.00015356,2]
[352927265,1739436649199,-674.27,0.00015357,2]
[352927266,1739436649210,-3313.5733161,0.00015369,2]
[352927267,1739436649221,-8292.8203958,0.00015369,2]
[352927268,1739436649234,-151.0,0.0001537,2]
[352927269,1739436649246,-496.04,0.0001537,2]
[352927270,1739436649256,-500.0,0.00015373,2]
[352927271,1739436649266,-150.0,0.00015376,2]
[352927272,1739436649277,-674.27,0.00015379,2]
[352927273,1739436649288,-674.27,0.00015379,2]
[352927274,1739436649298,-674.27,0.00015379,2]
[352927275,1739436649308,-674.27,0.00015379,2]
[352927276,1739436649319,-674.27,0.00015379,2]
[352927277,1739436649328,-674.27,0.00015379,2]
[352927278,1739436649338,-674.27,0.00015379,2]
[352927279,1739436649348,-674.27,0.00015379,2]
[352927280,1739436649357,-674.27,0.00015379,2]
[352927281,1739436649367,-674.27,0.00015379,2]
[352927282,1739436649377,-674.27,0.00015379,2]
[352927283,1739436649387,-674.27,0.00015379,2]
[352927284,1739436649396,-674.27,0.00015379,2]
[352927285,1739436649406,-674.27,0.00015379,2]
[352927286,1739436649415,-674.27,0.00015379,2]
[352927287,1739436649426,-674.27,0.00015379,2]
[352927288,1739436649435,-80771.06257691,0.0001538,3]
[352927289,1739436649446,-453138.84592434,0.0001538,2]
[352927290,1739436650038,-826.65502329,0.0001538,2]
[352927291,1739436650587,-645.08777897,0.0001528,2]
[352927292,1739436650597,-1846.74,0.00015334,2]
[352927293,1739436650607,-284689.4478705,0.0001538,2]
[352927294,1739436650644,-15815.55142269,0.0001538,2]
[352927295,1739436651267,-167.28915209,0.00015234,2]
[352927296,1739436651276,-150.26518811,0.0001538,2]
[352927297,1739436651303,-1765.64,0.00015332,2]
[352927298,1739436651313,-15172.09233444,0.0001538,2]
[352927299,1739436651396,-270.9328437,0.0001538,2]
[352927300,1739436668361,323.3551,8.973e-05,2]
[352927302,1739437402179,175.39,0.00010137,2]
[352927303,1739437532491,-888.78,0.00012401,2]
[352927304,1739437532514,-150.0,0.00013641,2]
[352927305,1739437532538,-150.0,0.00013833,2]
[352927306,1739437532564,-150.0,0.00013906,2]
[352927307,1739437532587,-150.0,0.00013979,2]
[352927308,1739437532611,-150.0,0.00014052,2]
[352927309,1739437532633,-150.0,0.00014126,2]
[352927310,1739437532657,-150.0,0.00014199,2]
[352927311,1739437532679,-150.0,0.00014272,2]
[352927312,1739437532702,-167.9,0.00014333,2]
[352927313,1739437532725,-150.0,0.00014345,2]
[352927314,1739437532746,-150.0,0.00014357,2]
[352927315,1739437532769,-300.0,0.0001438,2]
[352927316,1739437532791,-26.06821067,0.00014381,2]
[352927317,1739437544081,-439.93546878,0.00013068,2]
[352927318,1739437636091,-60.06453122,0.00013068,2]
[352927319,1739437636113,-150.0,0.00013725,2]
[352927320,1739437636134,-150.0,0.00014152,2]
[352927321,1739437636157,-150.0,0.00014375,2]
[352927322,1739437636181,-300.0,0.0001438,2]
[352927323,1739437636200,-645.71178933,0.00014381,2]
[352927324,1739437636222,-500.0,0.00014381,2]
[352927325,1739437636244,-500.0,0.00014381,2]
[352927326,1739437636264,-500.0,0.00014381,2]
[352927327,1739437636284,-500.0,0.00014381,2]
[352927328,1739437636305,-500.0,0.00014381,2]
[352927329,1739437636325,-173.49149065,0.00014381,2]
[352927330,1739437636348,-449.89,0.00014402,2]
[352927331,1739437636371,-150.0,0.00014418,2]
[352927332,1739437636395,-150.0,0.00014492,2]
[352927333,1739437636418,-1000.0,0.0001452,3]
[352927334,1739437636440,-150.0,0.00014565,2]
[352927335,1739437636466,-1550.82,0.000146,2]
[352927336,1739437636490,-150.0,0.00014638,2]
[352927337,1739437636514,-464.55175,0.00014664,2]
[352927338,1739437636536,-888.78,0.00014665,2]
[352927339,1739437636561,-150.0,0.00014711,2]
[352927340,1739437636587,-154.77,0.00014721,2]
[352927341,1739437636608,-150.0,0.00014784,2]
[352927342,1739437636630,-1000.0,0.00014794,3]
[352927343,1739437636654,-150.0,0.00014858,2]
[352927344,1739437636677,-150.0,0.00014931,2]
[352927345,1739437636702,-150.0,0.00015004,2]
[352927346,1739437636724,-150.0,0.00015077,2]
[352927347,1739437636747,-1823.43986358,0.000151,3]
[352927348,1739437648124,-1189.86,0.00014052,2]
[352927349,1739437648146,-574.56013642,0.000151,3]
[352927350,1739437648173,-150.0,0.0001515,2]
[352927351,1739437648194,-718.30522818,0.00015194,2]
[352927352,1739437746100,-900.0,0.00013068,2]
[352927353,1739437746124,-300.0,0.000141,5]
[352927354,1739437746145,-500.0,0.00014164,2]
[352927355,1739437746166,-700.0,0.000142,5]
[352927356,1739437746188,-1100.0,0.000143,5]
[352927357,1739437746210,-1000.0,0.00014334,2]
[352927358,1739437746231,-1400.0,0.000144,5]
[352927359,1739437746252,-900.0,0.00014438,2]
[352927360,1739437746273,-1800.0,0.000145,5]
[352927361,1739437746294,-300.0,0.000146,5]
[352927362,1739437746315,-248.7802,0.000147,5]
[352927363,1739437750113,-51.2198,0.000147,5]
[352927364,1739437750138,-114.73134102,0.00014764,2]
[352927365,1739437766107,-35.26865898,0.00014764,2]
[352927366,1739437766131,-260.69134102,0.000148,5]
[352927367,1739437813096,30126.91794,0.00014,5]
[352927368,1739437831687,-987.78,0.00014,5]
[352927370,1739437831699,-780.09523378,0.00014,5]
[352927372,1739437831713,-476.47053834,0.00014,5]
[352927373,1739437831741,-1957.0895502,0.00014,5]
[352927374,1739437831810,-2944.52502375,0.00014,5]
[352927375,1739437831901,-254.99062844,0.00014,5]
[352927376,1739437832035,-2671.17332045,0.00014,5]
[352927377,1739437832045,-500.0,0.00014164,2]
[352927378,1739437832054,-39.30865898,0.000148,5]
[352927379,1739437832064,-300.0,0.000149,5]
[352927380,1739437832078,-150.0,0.00015035,2]
[352927381,1739437832087,-501.7,0.00015069,2]
[352927382,1739437832096,-2120.01704721,0.000151,3]
[352927393,1739437837743,-37.98295279,0.000151,3]
[352927394,1739437837754,-416.08966595,0.00015194,2]
[352927395,1739437837787,-88.57033405,0.00015194,2]
[352927396,1739437837797,-446.25963595,0.00015194,2]
[352927397,1739437837809,-62.89036405,0.00015194,2]
[352927398,1739437837819,-150.0,0.00015223,2]
[352927399,1739437837829,-303.09891372,0.00015229,2]
[352927400,1739437837838,-2851.74191,0.0001523,2]
[352927401,1739437837848,-167.28915208,0.00015232,2]
[352927402,1739437837858,-490.88,0.00015257,2]
[352927403,1739437837869,-502.1,0.00015257,2]
[352927404,1739437837878,-500.0,0.00015257,2]
[352927405,1739437837888,-200.0,0.00015257,2]
[352927406,1739437837897,-162.35028127,0.00015273,2]
[352927407,1739437837907,-180.38072034,0.0001528,2]
[352927408,1739437837917,-243.51652288,0.0001528,2]
[352927410,1739437837926,-370.37973669,0.00015282,2]
[352927412,1739437837936,-180.38072034,0.0001529,2]
[352927414,1739437837946,-150.0,0.00015297,2]
[352927416,1739437837955,-2287.1,0.000153,2]
[352927418,1739437837964,-168.661,0.000153,2]
[352927420,1739437837973,-196.0,0.000153,4]
[352927422,1739437837983,-180.38072034,0.000153,2]
[352927424,1739437837995,-1000.0,0.000153,2]
[352927426,1739437838005,-173.79019076,0.0001532,2]
[352927428,1739437838023,-51579.35328244,0.0001532,2]
[352927430,1739437838033,-20701.2573893,0.00015321,2]
[352927432,1739437838043,-93155.6582518,0.00015322,2]
[352927433,1739437838052,-2679.391219,0.00015323,2]
[352927434,1739437838064,-49073.7522542,0.00015323,2]
[352927435,1739437838083,-1946.12,0.00015329,2]
[352927436,1739437838093,-2290.28,0.00015329,2]
[352927438,1739437838102,-1577.99,0.00015329,2]
[352927440,1739437838111,-4608.11,0.00015329,2]
[352927441,1739437838120,-2578.41,0.00015329,2]
[352927443,1739437838129,-5476.09,0.00015329,2]
[352927445,1739437838139,-2110.63036,0.00015329,2]
[352927446,1739437838148,-3584.81,0.00015329,2]
[352927447,1739437838157,-162.328254,0.00015329,2]
[352927448,1739437838166,-2929.15,0.00015329,2]
[352927449,1739437838176,-934.34,0.00015329,2]
[352927450,1739437838185,-2129.06,0.00015329,2]
[352927451,1739437838195,-2130.03,0.00015329,2]
[352927452,1739437838204,-1785.11,0.00015329,2]
[352927453,1739437838215,-3191.67,0.00015329,2]
[352927454,1739437838224,-2082.138677,0.00015329,2]
[352927455,1739437838235,-2943.04,0.00015329,2]
[352927456,1739437838245,-1186.39,0.00015329,2]
[352927457,1739437838255,-4085.69,0.00015329,2]
[352927458,1739437838265,-500.0,0.00015329,2]
[352927459,1739437838275,-3420.1,0.00015329,2]
[352927460,1739437838284,-1866.09,0.00015329,2]
[352927461,1739437838293,-2715.47,0.00015329,2]
[352927462,1739437838302,-3323.14,0.00015329,2]
[352927463,1739437838312,-1681.71,0.00015329,2]
[352927464,1739437838322,-2759.64,0.00015329,2]
[352927465,1739437838332,-12035.5,0.00015329,2]
[352927466,1739437838342,-4162.06,0.00015329,2]
[352927467,1739437838352,-5505.53,0.00015329,2]
[352927468,1739437838362,-2425.79,0.00015329,2]
[352927469,1739437838372,-2756.55,0.00015329,2]
[352927470,1739437838383,-4804.41,0.00015329,2]
[352927471,1739437838394,-3056.33,0.00015329,2]
[352927472,1739437838403,-4146.79,0.00015329,2]
[352927473,1739437838413,-500.0,0.00015329,2]
[352927474,1739437838423,-4379.02,0.00015329,2]
[352927475,1739437838433,-4316.62,0.00015329,2]
[352927476,1739437838442,-3974.43,0.00015329,2]
[352927477,1739437838454,-4523.18,0.00015329,2]
[352927478,1739437838464,-2091.01,0.00015329,2]
[352927479,1739437838473,-3364.91,0.00015329,2]
[352927480,1739437838483,-2072.83,0.00015329,2]
[352927481,1739437838492,-4999.2,0.00015329,2]
[352927482,1739437838503,-3733.59,0.00015329,2]
[352927483,1739437838515,-6181.5,0.00015329,2]
[352927484,1739437838527,-8824.38,0.00015329,2]
[352927485,1739437838537,-1861.49,0.00015329,2]
[352927486,1739437838547,-6010.11,0.00015329,2]
[352927487,1739437838558,-565.75,0.00015329,2]
[352927488,1739437838569,-3671.68,0.00015329,2]
[352927489,1739437838578,-2822.31,0.00015329,2]
[352927490,1739437838588,-4727.01,0.00015329,2]
[352927491,1739437838598,-500.0,0.00015329,2]
[352927492,1739437838608,-3834.36,0.00015329,2]
[352927493,1739437838618,-2756.61,0.00015329,2]
[352927494,1739437838629,-500.0,0.00015329,2]
[352927495,1739437838639,-7035.49,0.00015329,2]
[352927496,1739437838650,-5473.07,0.00015329,2]
[352927497,1739437838660,-500.0,0.00015329,2]
[352927498,1739437838670,-500.0,0.00015329,2]
[352927499,1739437838679,-2022.34,0.00015329,2]
[352927500,1739437838689,-2816.03,0.00015329,2]
[352927501,1739437838699,-4651.92,0.00015329,2]
[352927502,1739437838708,-1170.1,0.00015329,2]
[352927503,1739437838718,-609.41655116,0.0001533,2]
[352927504,1739437838733,-500.0,0.0001533,2]
[352927505,1739437838742,-500.0,0.0001533,2]
[352927506,1739437838752,-2723.08,0.0001533,2]
[352927507,1739437838763,-500.0,0.0001533,2]
[352927508,1739437838772,-500.0,0.0001533,2]
[352927509,1739437838783,-932.2,0.0001533,2]
[352927510,1739437838792,-1515.79009063,0.0001533,2]
[352927511,1739437838806,-404.27891411,0.0001533,2]
[352927512,1739437840228,-441.89099526,0.0001533,2]
[352927514,1739437840239,-698.56,0.0001533,2]
[352927516,1739437840249,-236.5338267,0.0001533,2]
[352927529,1739437842687,-1865.03,0.00015329,2]
[352927530,1739437842698,-263.4661733,0.0001533,2]
[352927531,1739437842711,-657.78,0.0001533,2]
[352927532,1739437842721,-500.0,0.0001533,2]
[352927533,1739437842730,-513.28683268,0.0001533,2]
[352927534,1739437842740,-500.0,0.0001533,2]
[352927535,1739437842752,-1046.94,0.0001533,2]
[352927536,1739437842763,-1617.77,0.0001533,2]
[352927537,1739437842773,-500.0,0.0001533,2]
[352927538,1739437842782,-500.0,0.0001533,2]
[352927539,1739437842792,-1796.65,0.0001533,2]
[352927540,1739437842802,-799.3,0.0001533,2]
[352927541,1739437842811,-546.84,0.0001533,2]
[352927542,1739437842821,-500.0,0.0001533,2]
[352927543,1739437842830,-500.0,0.0001533,2]
[352927544,1739437842840,-500.0,0.0001533,2]
[352927545,1739437842849,-1398.89,0.0001533,2]
[352927546,1739437842859,-500.0,0.0001533,2]
[352927547,1739437842868,-500.0,0.0001533,2]
[352927548,1739437842877,-500.0,0.0001533,2]
[352927549,1739437842887,-500.0,0.0001533,2]
[352927550,1739437842897,-500.0,0.0001533,2]
[352927551,1739437842906,-500.0,0.0001533,2]
[352927552,1739437842916,-2505.82,0.0001533,2]
[352927553,1739437842925,-706.92,0.0001533,2]
[352927554,1739437842934,-500.0,0.0001533,2]
[352927555,1739437842944,-500.0,0.0001533,2]
[352927556,1739437842953,-1535.84,0.0001533,2]
[352927558,1739437842962,-500.0,0.0001533,2]
[352927559,1739437842971,-500.0,0.0001533,2]
[352927560,1739437842981,-500.0,0.0001533,2]
[352927561,1739437842990,-1228.98,0.0001533,2]
[352927562,1739437843000,-1187.56,0.0001533,2]
[352927563,1739437843010,-2125.14,0.0001533,2]
[352927564,1739437843020,-500.0,0.0001533,2]
[352927565,1739437843029,-1207.68,0.0001533,2]
[352927566,1739437843039,-193.60699389,0.0001533,2]
[352927567,1739437843135,-2037.76300611,0.0001533,2]
[352927568,1739437843145,-500.0,0.0001533,2]
[352927569,1739437843156,-1178.14,0.0001533,2]
[352927570,1739437843167,-500.0,0.0001533,2]
[352927571,1739437843179,-924.51,0.0001533,2]
[352927572,1739437843189,-500.0,0.0001533,2]
[352927573,1739437843200,-1174.46,0.0001533,2]
[352927574,1739437843209,-1261.88,0.0001533,2]
[352927575,1739437843219,-500.0,0.0001533,2]
[352927576,1739437843228,-1048.34,0.0001533,2]
[352927577,1739437843237,-1394.14,0.0001533,2]
[352927578,1739437843246,-500.0,0.0001533,2]
[352927579,1739437843256,-500.0,0.0001533,2]
[352927580,1739437843267,-858.98,0.0001533,2]
[352927581,1739437843277,-500.0,0.0001533,2]
[352927582,1739437843449,-500.0,0.0001533,2]
[352927583,1739437843496,-500.0,0.0001533,2]
[352927584,1739437843507,-500.0,0.0001533,2]
[352927585,1739437843518,-500.0,0.0001533,2]
[352927586,1739437843530,-500.0,0.0001533,2]
[352927587,1739437843539,-500.0,0.0001533,2]
[352927588,1739437843549,-629.57,0.0001533,2]
[352927589,1739437843558,-1744.95,0.0001533,2]
[352927590,1739437843568,-500.0,0.0001533,2]
[352927591,1739437843577,-500.0,0.0001533,2]
[352927592,1739437843587,-500.0,0.0001533,2]
[352927593,1739437843597,-500.0,0.0001533,2]
[352927594,1739437843607,-760.86,0.0001533,2]
[352927595,1739437843618,-1058.46,0.0001533,2]
[352927596,1739437843629,-500.0,0.0001533,2]
[352927597,1739437843639,-772.99,0.0001533,2]
[352927598,1739437843649,-500.0,0.0001533,2]
[352927599,1739437843659,-636.64,0.0001533,2]
[352927600,1739437843670,-1302.49,0.0001533,2]
[352927601,1739437843680,-1253.69,0.0001533,2]
[352927602,1739437843691,-500.0,0.0001533,2]
[352927603,1739437843700,-1778.93,0.0001533,2]
[352927604,1739437843709,-500.0,0.0001533,2]
[352927605,1739437843718,-500.0,0.0001533,2]
[352927606,1739437843727,-2025.99,0.0001533,2]
[352927607,1739437843736,-1040.88,0.0001533,2]
[352927608,1739437843746,-500.0,0.0001533,2]
[352927609,1739437843755,-500.0,0.0001533,2]
[352927610,1739437843764,-500.0,0.0001533,2]
[352927611,1739437843774,-1531.73,0.0001533,2]
[352927612,1739437843783,-500.0,0.0001533,2]
[352927613,1739437843793,-500.0,0.0001533,2]
[352927614,1739437843802,-537.03,0.0001533,2]
[352927615,1739437843811,-500.0,0.0001533,2]
[352927616,1739437843820,-500.0,0.0001533,2]
[352927617,1739437843829,-1122.89,0.0001533,2]
[352927618,1739437843838,-500.0,0.0001533,2]
[352927619,1739437843848,-500.0,0.0001533,2]
[352927620,1739437843857,-500.0,0.0001533,2]
[352927621,1739437843866,-614.62,0.0001533,2]
[352927622,1739437843875,-500.0,0.0001533,2]
[352927623,1739437843885,-500.0,0.0001533,2]
[352927624,1739437843895,-500.0,0.0001533,2]
[352927625,1739437843904,-572.35,0.0001533,2]
[352927626,1739437843914,-588.24,0.0001533,2]
[352927627,1739437843924,-500.0,0.0001533,2]
[352927628,1739437843933,-500.0,0.0001533,2]
[352927629,1739437843943,-500.0,0.0001533,2]
[352927630,1739437843952,-500.0,0.0001533,2]
[352927631,1739437843960,-500.0,0.0001533,2]
[352927632,1739437843970,-500.0,0.0001533,2]
[352927633,1739437843979,-500.0,0.0001533,2]
[352927634,1739437843988,-500.0,0.0001533,2]
[352927635,1739437843998,-500.0,0.0001533,2]
[352927636,1739437844007,-500.0,0.0001533,2]
[352927637,1739437844017,-500.0,0.0001533,2]
[352927638,1739437844026,-507.93207006,0.0001533,2]
[352927639,1739437844035,-1305.42,0.0001533,2]
[352927640,1739437844044,-699.25,0.0001533,2]
[352927641,1739437844054,-500.0,0.0001533,2]
[352927642,1739437844063,-500.0,0.0001533,2]
[352927643,1739437844075,-500.0,0.0001533,2]
[352927644,1739437844084,-500.0,0.0001533,2]
[352927645,1739437844094,-500.0,0.0001533,2]
[352927646,1739437844103,-500.0,0.0001533,2]
[352927647,1739437844112,-998.83,0.0001533,2]
[352927648,1739437844122,-500.0,0.0001533,2]
[352927649,1739437844131,-594.54,0.0001533,2]
[352927650,1739437844140,-1244.35,0.0001533,2]
[352927651,1739437844150,-500.0,0.0001533,2]
[352927652,1739437844159,-500.0,0.0001533,2]
[352927653,1739437844173,-740.44,0.0001533,2]
[352927654,1739437844182,-1315.75,0.0001533,2]
[352927655,1739437844191,-500.0,0.0001533,2]
[352927656,1739437844201,-500.0,0.0001533,2]
[352927657,1739437844210,-1486.72,0.0001533,2]
[352927658,1739437844220,-1229.46,0.0001533,2]
[352927659,1739437844229,-500.0,0.0001533,2]
[352927660,1739437844238,-500.0,0.0001533,2]
[352927661,1739437844248,-656.07,0.0001533,2]
[352927662,1739437844258,-500.0,0.0001533,2]
[352927663,1739437844267,-500.0,0.0001533,2]
[352927664,1739437844276,-512.51536402,0.0001533,2]
[352927665,1739437844285,-2226.9,0.0001533,2]
[352927666,1739437844295,-500.0,0.0001533,2]
[352927667,1739437844305,-500.0,0.0001533,2]
[352927668,1739437844314,-517.16483873,0.0001533,2]
[352927669,1739437844324,-500.0,0.0001533,2]
[352927670,1739437844333,-500.0,0.0001533,2]
[352927671,1739437844342,-1948.66,0.0001533,2]
[352927672,1739437844352,-514.5738102,0.0001533,2]
[352927673,1739437844362,-2205.02,0.0001533,2]
[352927674,1739437844371,-340.66543236,0.0001533,2]
[352927675,1739437844380,-1239.3,0.0001533,2]
[352927676,1739437844390,-234.91635811,0.0001533,2]
[352927677,1739437844399,-671.82,0.0001533,2]
[352927678,1739437844408,-500.0,0.0001533,2]
[352927679,1739437844418,-1484.95,0.0001533,2]
[352927680,1739437844427,-586.32,0.0001533,2]
[352927681,1739437844437,-500.0,0.0001533,2]
[352927682,1739437844447,-1830.66,0.0001533,2]
[352927683,1739437844456,-500.0,0.0001533,2]
[352927684,1739437844465,-909.44,0.0001533,2]
[352927685,1739437844474,-500.0,0.0001533,2]
[352927686,1739437844483,-399.67448682,0.0001533,2]
[352927687,1739437844492,-742.55,0.0001533,2]
[352927688,1739437844501,-531.89,0.0001533,2]
[352927689,1739437844511,-506.89448119,0.0001533,2]
[352927690,1739437844521,-2043.88,0.0001533,2]
[352927691,1739437844530,-500.0,0.0001533,2]
[352927692,1739437844540,-1316.57,0.0001533,2]
[352927693,1739437844550,-949.09,0.0001533,2]
[352927694,1739437844559,-3582.29,0.0001533,2]
[352927695,1739437844568,-507.85058523,0.0001533,2]
[352927696,1739437844577,-2068.66,0.0001533,2]
[352927697,1739437844587,-500.0,0.0001533,2]
[352927698,1739437844596,-500.0,0.0001533,2]
[352927699,1739437844605,-500.0,0.0001533,2]
[352927700,1739437844615,-2416.75,0.0001533,2]
[352927701,1739437844625,-848.49,0.0001533,2]
[352927702,1739437844634,-814.36,0.0001533,2]
[352927703,1739437844644,-500.0,0.0001533,2]
[352927704,1739437844653,-500.0,0.0001533,2]
[352927705,1739437844662,-3480.37,0.0001533,2]
[352927706,1739437844671,-1674.29,0.0001533,2]
[352927707,1739437844681,-640.51,0.0001533,2]
[352927708,1739437844691,-1158.07,0.0001533,2]
[352927709,1739437844699,-1400.37,0.0001533,2]
[352927710,1739437844709,-3552.77,0.0001533,2]
[352927711,1739437844718,-501.61,0.0001533,2]
[352927712,1739437844727,-500.0,0.0001533,2]
[352927713,1739437844736,-4837.53,0.0001533,2]
[352927714,1739437844745,-500.0,0.0001533,2]
[352927715,1739437844755,-500.0,0.0001533,2]
[352927716,1739437844765,-500.0,0.0001533,2]
[352927717,1739437844774,-938.66,0.0001533,2]
[352927718,1739437844783,-1615.2,0.0001533,2]
[352927719,1739437844793,-502.01595773,0.0001533,2]
[352927720,1739437844802,-500.0,0.0001533,2]
[352927721,1739437844811,-2835.24,0.0001533,2]
[352927722,1739437844820,-577.5,0.0001533,2]
[352927723,1739437844829,-500.0,0.0001533,2]
[352927724,1739437844838,-500.0,0.0001533,2]
[352927725,1739437844848,-500.0,0.0001533,2]
[352927726,1739437844857,-500.0,0.0001533,2]
[352927727,1739437844866,-500.0,0.0001533,2]
[352927728,1739437844875,-1208.23,0.0001533,2]
[352927729,1739437844884,-6531.78,0.0001533,2]
[352927730,1739437844893,-500.0,0.0001533,2]
[352927731,1739437844903,-500.0,0.0001533,2]
[352927732,1739437844912,-500.0,0.0001533,2]
[352927733,1739437844922,-916.74,0.0001533,2]
[352927734,1739437844931,-829.06,0.0001533,2]
[352927735,1739437844941,-3751.03,0.0001533,2]
[352927736,1739437844952,-1648.67,0.0001533,2]
[352927737,1739437844963,-957.69,0.0001533,2]
[352927738,1739437844973,-1200.0,0.0001533,2]
[352927739,1739437844982,-510.87443803,0.0001533,2]
[352927740,1739437844991,-4652.81,0.0001533,2]
[352927741,1739437845001,-500.0,0.0001533,2]
[352927742,1739437845012,-500.0,0.0001533,2]
[352927743,1739437845021,-788.09,0.0001533,2]
[352927744,1739437845031,-6669.79,0.0001533,2]
[352927745,1739437845040,-3137.89,0.0001533,2]
[352927746,1739437845050,-1213.94,0.0001533,2]
[352927747,1739437845060,-310.00717578,0.0001533,2]
[352927748,1739437845071,-3414.46,0.0001533,2]
[352927749,1739437845082,-1847.42,0.0001533,2]
[352927750,1739437845091,-900.74,0.0001533,2]
[352927751,1739437845101,-500.0,0.0001533,2]
[352927752,1739437845111,-931.67,0.0001533,2]
[352927753,1739437845120,-500.0,0.0001533,2]
[352927754,1739437845129,-651.27,0.0001533,2]
[352927755,1739437845139,-500.0,0.0001533,2]
[352927756,1739437845150,-500.0,0.0001533,2]
[352927757,1739437845160,-885.76,0.0001533,2]
[352927758,1739437845170,-674.1,0.0001533,2]
[352927759,1739437845181,-1276.44,0.0001533,2]
[352927760,1739437845190,-500.0,0.0001533,2]
[352927761,1739437845199,-860.33,0.0001533,2]
[352927762,1739437845209,-500.0,0.0001533,2]
[352927763,1739437845219,-4130.64,0.0001533,2]
[352927764,1739437845228,-645.01,0.0001533,2]
[352927765,1739437845238,-6268.05,0.0001533,2]
[352927766,1739437845249,-500.0,0.0001533,2]
[352927767,1739437845258,-500.0,0.0001533,2]
[352927768,1739437845269,-500.0,0.0001533,2]
[352927769,1739437845280,-2384.29,0.0001533,2]
[352927770,1739437845291,-500.0,0.0001533,2]
[352927771,1739437845301,-500.0,0.0001533,2]
[352927772,1739437845311,-2366.06,0.0001533,2]
[352927773,1739437845321,-500.0,0.0001533,2]
[352927774,1739437845331,-1398.62,0.0001533,2]
[352927775,1739437845340,-500.0,0.0001533,2]
[352927776,1739437845349,-500.0,0.0001533,2]
[352927777,1739437845359,-2881.41,0.0001533,2]
[352927778,1739437845369,-4073.1,0.0001533,2]
[352927779,1739437845378,-1769.79,0.0001533,2]
[352927780,1739437845387,-500.0,0.0001533,2]
[352927781,1739437845397,-1456.16,0.0001533,2]
[352927782,1739437845407,-2793.14,0.0001533,2]
[352927783,1739437845416,-1182.14,0.0001533,2]
[352927784,1739437845426,-1422.47,0.0001533,2]
[352927785,1739437845436,-530.0,0.0001533,2]
[352927786,1739437845446,-1064.21,0.0001533,2]
[352927787,1739437845456,-500.0,0.0001533,2]
[352927788,1739437845466,-3408.47,0.00015331,2]
[352927789,1739437845476,-3994.96,0.00015331,2]
[352927790,1739437845487,-500.0,0.00015331,2]
[352927791,1739437845498,-500.0,0.00015332,2]
[352927792,1739437845511,-358.18084021,0.00015332,2]
[352927793,1739437845520,-2441.64,0.00015332,2]
[352927794,1739437845529,-2822.55,0.00015332,2]
[352927795,1739437845538,-1205.0,0.00015332,2]
[352927796,1739437845548,-1707.69,0.00015332,2]
[352927797,1739437845557,-2041.07,0.00015332,2]
[352927798,1739437845567,-1753.62,0.00015332,2]
[352927799,1739437845579,-2773.24,0.00015332,2]
[352927800,1739437845589,-500.0,0.00015332,2]
[352927801,1739437845600,-1514.8,0.00015332,2]
[352927802,1739437845609,-1274.34,0.00015332,2]
[352927803,1739437845619,-2009.95,0.00015332,2]
[352927804,1739437845629,-620.38,0.00015332,2]